[Event "Titled Tuesday Blitz November 14 Late 2023"]
[White "Tatarinov, Dmitry"]
[Black "Marcziter, Dmitrii"]
[WhiteFideId "24160067"]
[BlackFideId "13900765"]
[WhiteElo "2788"]
[BlackElo "2413"]
[Result "0-1"]
[Round "2"]
[TimeControl "180+1"]
[Date "2023.11.14"]
[WhiteClock "0:01:28"]
[BlackClock "0:00:47"]
[Board "86"]

1. e4 {[%clk 0:02:25]}  c5 {[%clk 0:02:58]} 2. Nf3 {[%clk 0:02:25]}  a6 {[%clk 0:02:58]} 3. c4 {[%clk 0:02:24]}  e6 {[%clk 0:02:57]} 4. Nc3 {[%clk 0:02:23]}  Qc7 {[%clk 0:02:57]} 5. Be2 {[%clk 0:02:23]}  b6 {[%clk 0:02:54]} 6. O-O {[%clk 0:02:23]}  Bb7 {[%clk 0:02:54]} 7. d4 {[%clk 0:02:22]}  cxd4 {[%clk 0:02:54]} 8. Nxd4 {[%clk 0:02:23]}  Nf6 {[%clk 0:02:55]} 9. Qd3 {[%clk 0:02:16]}  Nc6 {[%clk 0:02:51]} 10. Nxc6 {[%clk 0:02:16]}  dxc6 {[%clk 0:02:51]} 11. f4 {[%clk 0:02:08]}  e5 {[%clk 0:02:43]} 12. fxe5 {[%clk 0:02:04]}  Qxe5 {[%clk 0:02:43]} 13. Bf4 {[%clk 0:02:04]}  Bc5+ {[%clk 0:02:36]} 14. Kh1 {[%clk 0:02:04]}  Qe6 {[%clk 0:02:35]} 15. e5 {[%clk 0:02:00]}  Nd7 {[%clk 0:02:33]} 16. Qg3 {[%clk 0:02:00]}  O-O {[%clk 0:02:24]} 17. Rad1 {[%clk 0:01:55]}  Rad8 {[%clk 0:02:16]} 18. Bg4 {[%clk 0:01:44]}  Qe7 {[%clk 0:02:15]} 19. Ne4 {[%clk 0:01:43]}  f5 {[%clk 0:01:56]} 20. Bg5 {[%clk 0:01:38]}  Qxe5 {[%clk 0:01:43]} 21. Bxd8 {[%clk 0:01:38]}  fxg4 {[%clk 0:00:50]} 22. Rxd7 {[%clk 0:01:28]}  Rxf1# {[%clk 0:00:47]} 0-1


[Site "https://www.chess.com"]

[Event "Titled Tuesday Blitz November 14 Late 2023"]
[White "Wanyama, Harold"]
[Black "Djokic, Mihailo"]
[WhiteFideId "10000380"]
[BlackFideId "976440"]
[WhiteElo "2443"]
[BlackElo "2680"]
[Result "1-0"]
[Round "2"]
[TimeControl "180+1"]
[Date "2023.11.14"]
[WhiteClock "0:00:56"]
[BlackClock "0:00:55"]
[Board "87"]

1. d4 {[%clk 0:02:55]}  Nf6 {[%clk 0:02:58]} 2. c4 {[%clk 0:02:55]}  g6 {[%clk 0:02:58]} 3. g3 {[%clk 0:02:55]}  Bg7 {[%clk 0:02:59]} 4. Bg2 {[%clk 0:02:55]}  O-O {[%clk 0:03:00]} 5. Nf3 {[%clk 0:02:56]}  d6 {[%clk 0:03:00]} 6. Kf1 {[%clk 0:02:56]}  Nc6 {[%clk 0:03:01]} 7. Nc3 {[%clk 0:02:55]}  e5 {[%clk 0:03:01]} 8. d5 {[%clk 0:02:53]}  Ne7 {[%clk 0:02:59]} 9. e4 {[%clk 0:02:53]}  Nd7 {[%clk 0:03:00]} 10. Rb1 {[%clk 0:02:51]}  h6 {[%clk 0:03:00]} 11. b4 {[%clk 0:02:49]}  f5 {[%clk 0:03:01]} 12. c5 {[%clk 0:02:44]}  Nf6 {[%clk 0:03:00]} 13. Qc2 {[%clk 0:02:35]}  fxe4 {[%clk 0:02:59]} 14. Ne1 {[%clk 0:02:25]}  Nf5 {[%clk 0:02:59]} 15. Nxe4 {[%clk 0:02:22]}  Nd4 {[%clk 0:02:58]} 16. Qd3 {[%clk 0:02:19]}  Ng4 {[%clk 0:02:47]} 17. h3 {[%clk 0:02:13]}  Nf6 {[%clk 0:02:40]} 18. Nxf6+ {[%clk 0:02:10]}  Qxf6 {[%clk 0:02:40]} 19. Be3 {[%clk 0:02:09]}  Nf5 {[%clk 0:02:35]} 20. Kg1 {[%clk 0:02:05]}  a5 {[%clk 0:02:31]} 21. b5 {[%clk 0:02:02]}  dxc5 {[%clk 0:02:23]} 22. Bxc5 {[%clk 0:02:00]}  Rd8 {[%clk 0:02:23]} 23. b6 {[%clk 0:01:55]}  cxb6 {[%clk 0:02:20]} 24. Rxb6 {[%clk 0:01:53]}  Qg5 {[%clk 0:02:19]} 25. h4 {[%clk 0:01:49]}  Qc1 {[%clk 0:02:19]} 26. Qc2 {[%clk 0:01:18]}  Qxc2 {[%clk 0:01:33]} 27. Nxc2 {[%clk 0:01:17]}  Kf7 {[%clk 0:01:28]} 28. Ne3 {[%clk 0:01:15]}  Nd4 {[%clk 0:01:23]} 29. Be4 {[%clk 0:01:11]}  Nf5 {[%clk 0:01:24]} 30. h5 {[%clk 0:01:08]}  Nxe3 {[%clk 0:01:17]} 31. hxg6+ {[%clk 0:01:08]}  Kg8 {[%clk 0:01:17]} 32. Bxe3 {[%clk 0:01:08]}  Bg4 {[%clk 0:01:09]} 33. Bxh6 {[%clk 0:01:05]}  Ra6 {[%clk 0:01:09]} 34. Rxb7 {[%clk 0:00:57]}  Bd7 {[%clk 0:00:55]} 35. Bxg7 {[%clk 0:00:56]} 1-0


[Site "https://www.chess.com"]

[Event "Titled Tuesday Blitz November 14 Late 2023"]
[White "GatoRojo150"]
[Black "Mushini Ajay"]
[BlackFideId "35066188"]
[WhiteElo "2636"]
[BlackElo "2397"]
[Result "1-0"]
[Round "2"]
[TimeControl "180+1"]
[Date "2023.11.14"]
[WhiteClock "0:01:31"]
[BlackClock "0:00:41"]
[Board "91"]

1. e4 {[%clk 0:03:00]}  c5 {[%clk 0:03:00]} 2. Nf3 {[%clk 0:03:00]}  d6 {[%clk 0:03:00]} 3. Nc3 {[%clk 0:03:01]}  a6 {[%clk 0:02:59]} 4. d4 {[%clk 0:03:01]}  cxd4 {[%clk 0:02:59]} 5. Nxd4 {[%clk 0:03:02]}  e5 {[%clk 0:02:58]} 6. Nf5 {[%clk 0:03:01]}  Bxf5 {[%clk 0:02:56]} 7. exf5 {[%clk 0:03:02]}  Nf6 {[%clk 0:02:54]} 8. g4 {[%clk 0:03:01]}  h6 {[%clk 0:02:51]} 9. h4 {[%clk 0:03:01]}  Nbd7 {[%clk 0:02:48]} 10. Rg1 {[%clk 0:03:01]}  Nc5 {[%clk 0:01:49]} 11. g5 {[%clk 0:02:58]}  Nfe4 {[%clk 0:01:47]} 12. Nxe4 {[%clk 0:02:52]}  Nxe4 {[%clk 0:01:46]} 13. Qd5 {[%clk 0:02:53]}  Nc5 {[%clk 0:01:42]} 14. g6 {[%clk 0:02:44]}  Qf6 {[%clk 0:01:34]} 15. Be3 {[%clk 0:02:31]}  O-O-O {[%clk 0:01:27]} 16. O-O-O {[%clk 0:02:22]}  Be7 {[%clk 0:01:17]} 17. gxf7 {[%clk 0:02:17]}  Rhf8 {[%clk 0:01:12]} 18. Bh3 {[%clk 0:01:58]}  Kb8 {[%clk 0:01:06]} 19. b4 {[%clk 0:01:35]}  Nd7 {[%clk 0:00:41]} 20. Bg2 {[%clk 0:01:31]} 1-0


[Site "https://www.chess.com"]

[Event "Titled Tuesday Blitz November 14 Late 2023"]
[White "Esquivel Golcher, Luis Enrique"]
[Black "Leiva, Gianmarco"]
[WhiteFideId "6600174"]
[BlackFideId "3804399"]
[WhiteElo "2355"]
[BlackElo "2608"]
[Result "1-0"]
[Round "2"]
[TimeControl "180+1"]
[Date "2023.11.14"]
[WhiteClock "0:00:28"]
[BlackClock "0:00:00"]
[Board "95"]

1. b3 {[%clk 0:02:51]}  Nf6 {[%clk 0:02:58]} 2. Bb2 {[%clk 0:02:47]}  e6 {[%clk 0:02:58]} 3. c4 {[%clk 0:02:43]}  d5 {[%clk 0:02:57]} 4. e3 {[%clk 0:02:41]}  Bd6 {[%clk 0:02:58]} 5. f4 {[%clk 0:02:39]}  O-O {[%clk 0:02:58]} 6. Nf3 {[%clk 0:02:38]}  c5 {[%clk 0:02:58]} 7. Ne5 {[%clk 0:02:26]}  b6 {[%clk 0:02:53]} 8. Be2 {[%clk 0:02:19]}  Bb7 {[%clk 0:02:50]} 9. Bf3 {[%clk 0:02:19]}  Nc6 {[%clk 0:02:47]} 10. O-O {[%clk 0:02:14]}  Qe7 {[%clk 0:02:39]} 11. Nxc6 {[%clk 0:02:09]}  Bxc6 {[%clk 0:02:39]} 12. Nc3 {[%clk 0:02:01]}  Rfd8 {[%clk 0:02:31]} 13. Qe2 {[%clk 0:01:59]}  Rac8 {[%clk 0:02:22]} 14. Rae1 {[%clk 0:01:57]}  Bb8 {[%clk 0:01:53]} 15. Ba1 {[%clk 0:01:53]}  e5 {[%clk 0:01:47]} 16. Nxd5 {[%clk 0:01:44]}  Nxd5 {[%clk 0:01:47]} 17. cxd5 {[%clk 0:01:41]}  Bxd5 {[%clk 0:01:47]} 18. Bxd5 {[%clk 0:01:39]}  Rxd5 {[%clk 0:01:48]} 19. e4 {[%clk 0:01:34]}  Rd7 {[%clk 0:01:45]} 20. f5 {[%clk 0:01:32]}  f6 {[%clk 0:01:41]} 21. Bc3 {[%clk 0:01:28]}  Rcd8 {[%clk 0:01:28]} 22. Rf3 {[%clk 0:01:25]}  Rb7 {[%clk 0:01:21]} 23. a4 {[%clk 0:01:23]}  Qf7 {[%clk 0:01:20]} 24. Qc4 {[%clk 0:01:18]}  Rbd7 {[%clk 0:01:13]} 25. Qb5 {[%clk 0:01:10]}  Rd6 {[%clk 0:01:11]} 26. h4 {[%clk 0:01:02]}  Qb7 {[%clk 0:01:09]} 27. Kh2 {[%clk 0:00:57]}  Kh8 {[%clk 0:01:08]} 28. h5 {[%clk 0:00:53]}  Qf7 {[%clk 0:00:32]} 29. Rh3 {[%clk 0:00:52]}  h6 {[%clk 0:00:27]} 30. a5 {[%clk 0:00:50]}  Qb7 {[%clk 0:00:19]} 31. a6 {[%clk 0:00:46]}  Qe7 {[%clk 0:00:18]} 32. b4 {[%clk 0:00:44]}  cxb4 {[%clk 0:00:05]} 33. Bxb4 {[%clk 0:00:44]}  Qd7 {[%clk 0:00:06]} 34. Qxd7 {[%clk 0:00:39]}  R6xd7 {[%clk 0:00:07]} 35. Rc1 {[%clk 0:00:37]}  Bd6 {[%clk 0:00:07]} 36. Bxd6 {[%clk 0:00:34]}  Rxd6 {[%clk 0:00:08]} 37. Rc7 {[%clk 0:00:34]}  R6d7 {[%clk 0:00:08]} 38. Rhc3 {[%clk 0:00:33]}  Kg8 {[%clk 0:00:06]} 39. Rb7 {[%clk 0:00:28]}  Kf7 {[%clk 0:00:02]} 40. Rcc7 {[%clk 0:00:28]}  Ke8 {[%clk 0:00:01]} 41. Rxa7 {[%clk 0:00:28]}  Rxc7 {[%clk 0:00:01]} 42. Rxc7 {[%clk 0:00:28]}  Ra8 {[%clk 0:00:00]} 43. a7 {[%clk 0:00:28]} 1-0


[Site "https://www.chess.com"]

[Event "Titled Tuesday Blitz November 14 Late 2023"]
[White "aghasiyevkamal"]
[Black "Biernacki, Mark"]
[BlackFideId "2082322"]
[WhiteElo "2593"]
[BlackElo "2334"]
[Result "1-0"]
[Round "2"]
[TimeControl "180+1"]
[Date "2023.11.14"]
[WhiteClock "0:00:17"]
[BlackClock "0:00:05"]
[Board "97"]

1. e4 {[%clk 0:03:00]}  c6 {[%clk 0:02:59]} 2. d4 {[%clk 0:02:53]}  d5 {[%clk 0:03:00]} 3. exd5 {[%clk 0:02:53]}  cxd5 {[%clk 0:03:00]} 4. Bd3 {[%clk 0:02:53]}  Nf6 {[%clk 0:02:58]} 5. h3 {[%clk 0:02:48]}  Nc6 {[%clk 0:02:56]} 6. c3 {[%clk 0:02:48]}  g6 {[%clk 0:02:55]} 7. Nf3 {[%clk 0:02:47]}  Bf5 {[%clk 0:02:55]} 8. Be2 {[%clk 0:02:46]}  Bg7 {[%clk 0:02:47]} 9. O-O {[%clk 0:02:46]}  O-O {[%clk 0:02:47]} 10. Bf4 {[%clk 0:02:23]}  Qb6 {[%clk 0:02:30]} 11. Qb3 {[%clk 0:02:19]}  Qxb3 {[%clk 0:02:31]} 12. axb3 {[%clk 0:02:19]}  a6 {[%clk 0:02:32]} 13. Nbd2 {[%clk 0:02:13]}  Ne4 {[%clk 0:02:26]} 14. Rfe1 {[%clk 0:02:04]}  Nxd2 {[%clk 0:02:16]} 15. Nxd2 {[%clk 0:01:54]}  Rfe8 {[%clk 0:02:16]} 16. b4 {[%clk 0:01:54]}  f6 {[%clk 0:01:44]} 17. Bf3 {[%clk 0:01:37]}  Rad8 {[%clk 0:01:27]} 18. Bc7 {[%clk 0:01:25]}  Rd7 {[%clk 0:01:26]} 19. Bb6 {[%clk 0:01:22]}  e5 {[%clk 0:01:19]} 20. Nb3 {[%clk 0:01:15]}  Bf8 {[%clk 0:01:01]} 21. Bc5 {[%clk 0:01:06]}  Bc2 {[%clk 0:00:48]} 22. Bd1 {[%clk 0:00:41]}  Bxb3 {[%clk 0:00:32]} 23. Bxb3 {[%clk 0:00:39]}  Bxc5 {[%clk 0:00:32]} 24. bxc5 {[%clk 0:00:37]}  exd4 {[%clk 0:00:28]} 25. Rxe8+ {[%clk 0:00:36]}  Kf7 {[%clk 0:00:20]} 26. Rh8 {[%clk 0:00:23]}  Kg7 {[%clk 0:00:20]} 27. Rc8 {[%clk 0:00:21]}  dxc3 {[%clk 0:00:17]} 28. bxc3 {[%clk 0:00:20]}  Ne5 {[%clk 0:00:11]} 29. Rd1 {[%clk 0:00:18]}  Rc7 {[%clk 0:00:05]} 30. Rxc7+ {[%clk 0:00:17]} 1-0


[Site "https://www.chess.com"]

[Event "Titled Tuesday Blitz November 14 Late 2023"]
[White "Herman, Matthew"]
[Black "Petersson, Kjell"]
[WhiteFideId "2028964"]
[BlackFideId "1705148"]
[WhiteElo "2523"]
[BlackElo "2141"]
[Result "1-0"]
[Round "2"]
[TimeControl "180+1"]
[Date "2023.11.14"]
[WhiteClock "0:00:15"]
[BlackClock "0:00:03"]
[Board "99"]

1. e4 {[%clk 0:03:00]}  c5 {[%clk 0:02:59]} 2. Nf3 {[%clk 0:03:00]}  d6 {[%clk 0:03:00]} 3. d4 {[%clk 0:03:01]}  cxd4 {[%clk 0:03:00]} 4. Nxd4 {[%clk 0:03:02]}  Nf6 {[%clk 0:03:00]} 5. Nc3 {[%clk 0:03:02]}  g6 {[%clk 0:03:00]} 6. Be3 {[%clk 0:03:02]}  Bg7 {[%clk 0:03:01]} 7. f3 {[%clk 0:03:02]}  Nc6 {[%clk 0:03:01]} 8. Nb3 {[%clk 0:03:02]}  O-O {[%clk 0:02:58]} 9. Qd2 {[%clk 0:03:03]}  Be6 {[%clk 0:02:43]} 10. O-O-O {[%clk 0:02:59]}  Rc8 {[%clk 0:02:14]} 11. Kb1 {[%clk 0:02:59]}  Na5 {[%clk 0:02:08]} 12. Nd4 {[%clk 0:02:57]}  Nc4 {[%clk 0:02:01]} 13. Bxc4 {[%clk 0:02:56]}  Bxc4 {[%clk 0:02:01]} 14. Bh6 {[%clk 0:02:50]}  b5 {[%clk 0:01:54]} 15. h4 {[%clk 0:02:28]}  b4 {[%clk 0:01:42]} 16. Na4 {[%clk 0:02:27]}  Qa5 {[%clk 0:01:19]} 17. b3 {[%clk 0:02:27]}  Bb5 {[%clk 0:01:16]} 18. Nxb5 {[%clk 0:01:59]}  Qxb5 {[%clk 0:01:15]} 19. g4 {[%clk 0:01:50]}  Rc7 {[%clk 0:00:51]} 20. Bxg7 {[%clk 0:01:39]}  Kxg7 {[%clk 0:00:51]} 21. h5 {[%clk 0:01:11]}  g5 {[%clk 0:00:51]} 22. h6+ {[%clk 0:01:11]}  Kh8 {[%clk 0:00:48]} 23. Qe3 {[%clk 0:00:59]}  Rfc8 {[%clk 0:00:46]} 24. Rd2 {[%clk 0:00:58]}  Qe5 {[%clk 0:00:33]} 25. Rc1 {[%clk 0:00:46]}  Qf4 {[%clk 0:00:29]} 26. Qxf4 {[%clk 0:00:37]}  gxf4 {[%clk 0:00:30]} 27. g5 {[%clk 0:00:38]}  Nh5 {[%clk 0:00:29]} 28. e5 {[%clk 0:00:29]}  dxe5 {[%clk 0:00:28]} 29. Rcd1 {[%clk 0:00:29]}  Rg8 {[%clk 0:00:21]} 30. Rd8 {[%clk 0:00:26]}  Rc8 {[%clk 0:00:22]} 31. Rxc8 {[%clk 0:00:24]}  Rxc8 {[%clk 0:00:21]} 32. Rd7 {[%clk 0:00:23]}  Kg8 {[%clk 0:00:18]} 33. Rxe7 {[%clk 0:00:23]}  a5 {[%clk 0:00:16]} 34. Rxe5 {[%clk 0:00:23]}  Ra8 {[%clk 0:00:14]} 35. Nb6 {[%clk 0:00:20]}  Rb8 {[%clk 0:00:12]} 36. Nd5 {[%clk 0:00:15]}  Rd8 {[%clk 0:00:11]} 37. Kb2 {[%clk 0:00:13]}  Kf8 {[%clk 0:00:10]} 38. Nb6 {[%clk 0:00:07]}  Rd6 {[%clk 0:00:09]} 39. Nc4 {[%clk 0:00:07]}  Rd8 {[%clk 0:00:09]} 40. Rxa5 {[%clk 0:00:07]}  Re8 {[%clk 0:00:08]} 41. Rb5 {[%clk 0:00:06]}  Ng3 {[%clk 0:00:07]} 42. Rxb4 {[%clk 0:00:06]}  Ne2 {[%clk 0:00:06]} 43. Rb5 {[%clk 0:00:05]}  Nd4 {[%clk 0:00:06]} 44. Re5 {[%clk 0:00:05]}  Nxf3 {[%clk 0:00:07]} 45. Rf5 {[%clk 0:00:05]}  Nh4 {[%clk 0:00:07]} 46. Rxf4 {[%clk 0:00:06]}  Ng6 {[%clk 0:00:07]} 47. Rf5 {[%clk 0:00:06]}  Rd8 {[%clk 0:00:07]} 48. Rb5 {[%clk 0:00:06]}  Nf4 {[%clk 0:00:05]} 49. a4 {[%clk 0:00:07]}  Nd5 {[%clk 0:00:04]} 50. a5 {[%clk 0:00:06]}  Nc7 {[%clk 0:00:05]} 51. Rb7 {[%clk 0:00:06]}  Na6 {[%clk 0:00:04]} 52. Rb6 {[%clk 0:00:06]}  Nc7 {[%clk 0:00:04]} 53. a6 {[%clk 0:00:06]}  Ra8 {[%clk 0:00:03]} 54. Ne5 {[%clk 0:00:07]}  Nxa6 {[%clk 0:00:03]} 55. Rf6 {[%clk 0:00:06]}  Ra7 {[%clk 0:00:02]} 56. Nxf7 {[%clk 0:00:06]}  Rxf7 {[%clk 0:00:01]} 57. Rxa6 {[%clk 0:00:07]}  Rf5 {[%clk 0:00:01]} 58. Rf6+ {[%clk 0:00:08]}  Rxf6 {[%clk 0:00:01]} 59. gxf6 {[%clk 0:00:08]}  Kf7 {[%clk 0:00:01]} 60. b4 {[%clk 0:00:09]}  Kxf6 {[%clk 0:00:02]} 61. b5 {[%clk 0:00:10]}  Ke6 {[%clk 0:00:03]} 62. b6 {[%clk 0:00:11]}  Kd6 {[%clk 0:00:03]} 63. c4 {[%clk 0:00:11]}  Kc6 {[%clk 0:00:04]} 64. c5 {[%clk 0:00:12]}  Kb7 {[%clk 0:00:04]} 65. Kc3 {[%clk 0:00:12]}  Kc6 {[%clk 0:00:04]} 66. Kc4 {[%clk 0:00:12]}  Kb7 {[%clk 0:00:05]} 67. Kd5 {[%clk 0:00:13]}  Kb8 {[%clk 0:00:05]} 68. Kc6 {[%clk 0:00:13]}  Kc8 {[%clk 0:00:05]} 69. Kd6 {[%clk 0:00:13]}  Kb8 {[%clk 0:00:05]} 70. c6 {[%clk 0:00:13]}  Kc8 {[%clk 0:00:06]} 71. Ke6 {[%clk 0:00:14]}  Kd8 {[%clk 0:00:05]} 72. Kf7 {[%clk 0:00:14]}  Kc8 {[%clk 0:00:03]} 73. Kg7 {[%clk 0:00:15]} 1-0


[Site "https://www.chess.com"]

[Event "Titled Tuesday Blitz November 14 Late 2023"]
[White "Smirnov, Timofey"]
[Black "Droin, Augustin"]
[WhiteFideId "24176427"]
[BlackFideId "45105987"]
[WhiteElo "2106"]
[BlackElo "2516"]
[Result "0-1"]
[Round "2"]
[TimeControl "180+1"]
[Date "2023.11.14"]
[WhiteClock "0:01:32"]
[BlackClock "0:02:32"]
[Board "100"]

1. d4 {[%clk 0:03:00]}  d5 {[%clk 0:02:59]} 2. Bf4 {[%clk 0:03:01]}  h5 {[%clk 0:02:59]} 3. Nf3 {[%clk 0:02:58]}  f6 {[%clk 0:02:53]} 4. h3 {[%clk 0:02:56]}  g5 {[%clk 0:02:52]} 5. Bh2 {[%clk 0:02:54]}  g4 {[%clk 0:02:51]} 6. hxg4 {[%clk 0:02:54]}  hxg4 {[%clk 0:02:42]} 7. Nfd2 {[%clk 0:02:50]}  g3 {[%clk 0:02:40]} 8. fxg3 {[%clk 0:02:47]}  Nh6 {[%clk 0:02:41]} 9. e3 {[%clk 0:02:39]}  Ng4 {[%clk 0:02:40]} 10. Bd3 {[%clk 0:02:27]}  Qd6 {[%clk 0:02:36]} 11. Bg6+ {[%clk 0:02:14]}  Kd8 {[%clk 0:02:36]} 12. c4 {[%clk 0:01:56]}  Rxh2 {[%clk 0:02:33]} 13. Rxh2 {[%clk 0:01:50]}  Qxg3+ {[%clk 0:02:32]} 14. Ke2 {[%clk 0:01:32]}  Qxe3+ {[%clk 0:02:32]} 0-1


[Site "https://www.chess.com"]

[Event "Titled Tuesday Blitz November 14 Late 2023"]
[White "Kubatko, Ivan"]
[Black "Alekseenko, Kirill"]
[WhiteFideId "24111473"]
[BlackFideId "4135539"]
[WhiteElo "2399"]
[BlackElo "2957"]
[Result "0-1"]
[Round "2"]
[TimeControl "180+1"]
[Date "2023.11.14"]
[WhiteClock "0:00:02"]
[BlackClock "0:01:18"]
[Board "102"]

1. e4 {[%clk 0:03:00]}  c5 {[%clk 0:02:59]} 2. c3 {[%clk 0:03:01]}  Qa5 {[%clk 0:02:58]} 3. Nf3 {[%clk 0:02:59]}  Nc6 {[%clk 0:02:57]} 4. Na3 {[%clk 0:02:59]}  e6 {[%clk 0:02:57]} 5. Nc4 {[%clk 0:02:59]}  Qc7 {[%clk 0:02:57]} 6. d4 {[%clk 0:02:55]}  cxd4 {[%clk 0:02:58]} 7. cxd4 {[%clk 0:02:55]}  d5 {[%clk 0:02:58]} 8. exd5 {[%clk 0:02:53]}  exd5 {[%clk 0:02:59]} 9. Nce5 {[%clk 0:02:53]}  Bd6 {[%clk 0:02:58]} 10. Bd3 {[%clk 0:02:40]}  Nf6 {[%clk 0:02:53]} 11. O-O {[%clk 0:02:39]}  O-O {[%clk 0:02:52]} 12. Nxc6 {[%clk 0:01:55]}  bxc6 {[%clk 0:02:52]} 13. h3 {[%clk 0:01:51]}  Ne4 {[%clk 0:02:53]} 14. Re1 {[%clk 0:01:47]}  f5 {[%clk 0:02:49]} 15. Ne5 {[%clk 0:01:23]}  c5 {[%clk 0:02:32]} 16. Bf4 {[%clk 0:01:17]}  Bb7 {[%clk 0:01:54]} 17. Rc1 {[%clk 0:01:03]}  Rae8 {[%clk 0:01:53]} 18. Qb3 {[%clk 0:00:53]}  c4 {[%clk 0:01:39]} 19. Bxc4 {[%clk 0:00:53]}  dxc4 {[%clk 0:01:37]} 20. Rxc4 {[%clk 0:00:53]}  Bd5 {[%clk 0:01:37]} 21. Rxc7 {[%clk 0:00:48]}  Bxb3 {[%clk 0:01:36]} 22. Rxa7 {[%clk 0:00:40]}  Bd5 {[%clk 0:01:36]} 23. f3 {[%clk 0:00:24]}  Nf6 {[%clk 0:01:35]} 24. Kf2 {[%clk 0:00:19]}  Nh5 {[%clk 0:01:33]} 25. Bd2 {[%clk 0:00:18]}  Be7 {[%clk 0:01:19]} 26. g3 {[%clk 0:00:02]}  f4 {[%clk 0:01:18]} 0-1


[Site "https://www.chess.com"]

[Event "Titled Tuesday Blitz November 14 Late 2023"]
[White "Holt, Conrad"]
[Black "Zakarian, David"]
[WhiteFideId "2034387"]
[BlackFideId "13301276"]
[WhiteElo "2779"]
[BlackElo "2390"]
[Result "1-0"]
[Round "2"]
[TimeControl "180+1"]
[Date "2023.11.14"]
[WhiteClock "0:02:29"]
[BlackClock "0:01:17"]
[Board "105"]

1. a3 {[%clk 0:03:00]}  Nc6 {[%clk 0:02:58]} 2. b4 {[%clk 0:02:59]}  d5 {[%clk 0:02:56]} 3. Bb2 {[%clk 0:02:56]}  Nf6 {[%clk 0:02:53]} 4. e3 {[%clk 0:02:54]}  a6 {[%clk 0:02:52]} 5. c4 {[%clk 0:02:50]}  e6 {[%clk 0:02:41]} 6. Nf3 {[%clk 0:02:48]}  Be7 {[%clk 0:02:41]} 7. Qc2 {[%clk 0:02:44]}  O-O {[%clk 0:02:41]} 8. Ng5 {[%clk 0:02:43]}  g6 {[%clk 0:02:19]} 9. h4 {[%clk 0:02:40]}  Qd7 {[%clk 0:01:39]} 10. h5 {[%clk 0:02:34]}  dxc4 {[%clk 0:01:37]} 11. hxg6 {[%clk 0:02:32]}  hxg6 {[%clk 0:01:27]} 12. Bxc4 {[%clk 0:02:31]}  b5 {[%clk 0:01:23]} 13. Bxe6 {[%clk 0:02:30]}  Qxe6 {[%clk 0:01:17]} 14. Nxe6 {[%clk 0:02:29]} 1-0


[Site "https://www.chess.com"]

[Event "Titled Tuesday Blitz November 14 Late 2023"]
[White "hristos03"]
[Black "Schnaider, Ilan"]
[BlackFideId "169013"]
[WhiteElo "2389"]
[BlackElo "2728"]
[Result "0-1"]
[Round "2"]
[TimeControl "180+1"]
[Date "2023.11.14"]
[WhiteClock "0:00:05"]
[BlackClock "0:01:20"]
[Board "106"]

1. e4 {[%clk 0:02:59]}  c5 {[%clk 0:02:59]} 2. Nf3 {[%clk 0:02:58]}  d6 {[%clk 0:03:00]} 3. d4 {[%clk 0:02:58]}  cxd4 {[%clk 0:03:01]} 4. Nxd4 {[%clk 0:02:59]}  Nf6 {[%clk 0:03:01]} 5. Nc3 {[%clk 0:02:59]}  a6 {[%clk 0:03:00]} 6. h3 {[%clk 0:02:58]}  Nc6 {[%clk 0:02:59]} 7. Be3 {[%clk 0:02:37]}  e5 {[%clk 0:02:56]} 8. Nb3 {[%clk 0:02:35]}  Be7 {[%clk 0:02:53]} 9. g4 {[%clk 0:02:25]}  Be6 {[%clk 0:02:53]} 10. g5 {[%clk 0:02:17]}  Nd7 {[%clk 0:02:52]} 11. h4 {[%clk 0:02:14]}  Nc5 {[%clk 0:02:44]} 12. Nxc5 {[%clk 0:01:57]}  dxc5 {[%clk 0:02:45]} 13. Nd5 {[%clk 0:01:58]}  Nd4 {[%clk 0:02:29]} 14. c4 {[%clk 0:01:24]}  Bxd5 {[%clk 0:02:11]} 15. exd5 {[%clk 0:01:08]}  Bd6 {[%clk 0:02:11]} 16. Bxd4 {[%clk 0:00:57]}  exd4 {[%clk 0:02:06]} 17. Qe2+ {[%clk 0:00:52]}  Kd7 {[%clk 0:02:06]} 18. O-O-O {[%clk 0:00:45]}  Qa5 {[%clk 0:02:04]} 19. Kb1 {[%clk 0:00:41]}  Rae8 {[%clk 0:02:03]} 20. Qf3 {[%clk 0:00:38]}  Re7 {[%clk 0:02:02]} 21. Bd3 {[%clk 0:00:25]}  Kc7 {[%clk 0:01:54]} 22. h5 {[%clk 0:00:25]}  b5 {[%clk 0:01:46]} 23. h6 {[%clk 0:00:18]}  g6 {[%clk 0:01:41]} 24. Qf6 {[%clk 0:00:18]}  Rhe8 {[%clk 0:01:41]} 25. Qg7 {[%clk 0:00:17]}  Re1 {[%clk 0:01:38]} 26. Qxf7+ {[%clk 0:00:13]}  R8e7 {[%clk 0:01:38]} 27. Qf3 {[%clk 0:00:12]}  Qd2 {[%clk 0:01:37]} 28. Rhxe1 {[%clk 0:00:11]}  Rxe1 {[%clk 0:01:37]} 29. Bc2 {[%clk 0:00:11]}  Rxd1+ {[%clk 0:01:31]} 30. Bxd1 {[%clk 0:00:10]}  Bf4 {[%clk 0:01:31]} 31. a3 {[%clk 0:00:09]}  bxc4 {[%clk 0:01:29]} 32. d6+ {[%clk 0:00:07]}  Kxd6 {[%clk 0:01:29]} 33. Ba4 {[%clk 0:00:07]}  Qd3+ {[%clk 0:01:20]} 34. Qxd3 {[%clk 0:00:06]}  cxd3 {[%clk 0:01:21]} 35. Bb3 {[%clk 0:00:06]}  Bxg5 {[%clk 0:01:21]} 36. Bc4 {[%clk 0:00:07]}  d2 {[%clk 0:01:20]} 37. Kc2 {[%clk 0:00:07]}  Bxh6 {[%clk 0:01:20]} 38. Bxa6 {[%clk 0:00:07]}  Bf4 {[%clk 0:01:19]} 39. a4 {[%clk 0:00:07]}  h5 {[%clk 0:01:19]} 40. Be2 {[%clk 0:00:07]}  h4 {[%clk 0:01:19]} 41. Bg4 {[%clk 0:00:07]}  Kc6 {[%clk 0:01:20]} 42. b3 {[%clk 0:00:07]}  Kb6 {[%clk 0:01:20]} 43. Bf3 {[%clk 0:00:03]}  Ka5 {[%clk 0:01:21]} 44. Bg4 {[%clk 0:00:03]}  Kb4 {[%clk 0:01:21]} 45. Kd1 {[%clk 0:00:03]}  Kxb3 {[%clk 0:01:19]} 46. a5 {[%clk 0:00:04]}  c4 {[%clk 0:01:20]} 47. a6 {[%clk 0:00:04]}  c3 {[%clk 0:01:19]} 48. Be6+ {[%clk 0:00:04]}  Kb2 {[%clk 0:01:19]} 49. a7 {[%clk 0:00:04]}  c2+ {[%clk 0:01:19]} 50. Ke2 {[%clk 0:00:05]}  d1=Q# {[%clk 0:01:20]} 0-1


[Site "https://www.chess.com"]